bitfinex-derivatives/quotes_BTCF0:USTF0_20250424
["timestamp","ask_amount","ask_price","bid_price","bid_amount"]
[1745514949773,0.21556066,93003.0,93002.0,0.1074794]
[1745514949962,0.0322,93011.0,93010.0,0.1074701]
[1745514950162,0.0322,93011.0,93010.0,0.4294701]
[1745514950565,0.171869,93011.0,93010.0,0.4294701]
[1745514951070,0.0684,93011.0,93010.0,0.4304701]
[1745514951461,0.0664,93011.0,93010.0,0.4294701]
[1745514951668,0.0684,93011.0,93010.0,0.4304701]
[1745514953161,0.0684,93011.0,93010.0,0.4625701]
[1745514956479,0.0052,93016.0,93015.0,0.1074643]
[1745514956675,0.0375,93016.0,93015.0,0.2574643]
[1745514956975,0.0052,93016.0,93015.0,0.2574643]
[1745514957179,0.0052,93016.0,93015.0,0.4294643]
[1745514957674,0.0122,93016.0,93015.0,0.4314643]
[1745514959478,0.0102,93016.0,93015.0,0.4304643]
[1745514959695,0.0062,93016.0,93015.0,0.4294643]
[1745514959872,0.0082,93016.0,93015.0,0.4294643]
[1745514961683,0.0082,93016.0,93015.0,0.4947643]
[1745514966978,0.0011,93027.0,93020.0,0.0537287]
[1745514967203,0.0011,93027.0,93026.0,0.1074516]
[1745514967386,0.0011,93027.0,93026.0,0.2674516]
[1745514967788,0.032,93039.0,93038.0,0.1074378]
[1745514967974,0.032,93039.0,93038.0,0.2474378]
[1745514968174,0.13436234,93048.0,93047.0,0.1074274]
[1745514968490,0.08064924,93048.0,93047.0,0.2474274]
[1745514968683,0.18807544,93048.0,93047.0,0.2474274]
[1745514969181,0.18807544,93048.0,93047.0,0.4194274]
[1745514969383,0.19207544,93048.0,93047.0,0.4204274]
[1745514969578,0.08464924,93048.0,93047.0,0.4204274]
[1745514970086,0.08764924,93048.0,93047.0,0.4204274]
[1745514970886,0.10863232,93057.0,93053.0,0.0537101]
[1745514971085,0.10863232,93057.0,93055.0,0.1074181]
[1745514971086,0.0333,93056.0,93055.0,0.1074181]
[1745514971290,0.1355154,93057.0,93055.0,0.09297187]
[1745514971587,0.1355154,93057.0,93056.0,0.107417]
[1745514971890,0.1355154,93057.0,93056.0,0.267417]
[1745514972082,0.1355154,93057.0,93056.0,0.471217]
[1745514972679,0.1365154,93057.0,93056.0,0.471217]
[1745514973583,0.0031,93057.0,93056.0,0.471217]
[1745514973978,0.0333,93062.0,93061.0,0.1074112]
[1745514974185,0.0333,93062.0,93061.0,0.2574112]
[1745514974380,0.0537063,93060.0,93056.0,0.174]
[1745514974579,0.4682158,93057.0,93056.0,0.324]
[1745514974785,0.4682158,93057.0,93056.0,0.431417]
[1745514975288,0.4682158,93057.0,93056.0,0.257417]
[1745514976089,0.4682158,93057.0,93056.0,0.259417]
[1745514978182,0.4682158,93057.0,93056.0,0.002]
[1745514978382,0.107447,93030.0,93029.0,0.0537239]
[1745514978589,0.0537237,93030.0,93029.0,0.15]
[1745514978782,0.1074505,93027.0,93026.0,0.00107496]
[1745514978983,0.1074505,93027.0,93026.0,0.24852656]
[1745514979297,0.0929,93029.0,93028.0,0.1074493]
[1745514979486,0.0616,93029.0,93028.0,0.2474493]
[1745514979895,0.001,93030.0,93029.0,0.1074482]
[1745514980096,0.001,93030.0,93029.0,0.5800402]
[1745514980493,0.001,93030.0,93029.0,0.59633911]
[1745514980793,0.001,93030.0,93029.0,0.56323911]
[1745514981201,0.65734363,93030.0,93029.0,0.56323911]
[1745514981388,0.76473567,93030.0,93029.0,0.59633911]
[1745514981896,0.76473567,93030.0,93029.0,0.59933911]
[1745514982095,0.76573567,93030.0,93029.0,0.60434719]
[1745514982794,0.87318267,93030.0,93029.0,0.44375519]
[1745514982996,0.87318267,93030.0,93029.0,0.4244482]
[1745514983200,0.76573567,93030.0,93029.0,0.4444375]
[1745514983394,0.87318267,93030.0,93029.0,0.4444375]
[1745514983593,0.87318267,93030.0,93029.0,0.44426759]
[1745514983795,0.87318267,93030.0,93029.0,0.4284482]
[1745514983987,0.87318267,93030.0,93029.0,0.321]
[1745514984192,1.12322767,93030.0,93026.0,1e-08]
[1745514984492,1.12322767,93030.0,93026.0,0.14745161]
[1745514984493,0.1074505,93027.0,93026.0,0.14745161]
[1745514985292,0.1074505,93027.0,93026.0,0.15345161]
[1745514985801,0.1084505,93027.0,93026.0,0.15845161]
[1745514986004,0.1094505,93027.0,93026.0,0.15645161]
[1745514986194,0.1084505,93027.0,93026.0,0.15145161]
[1745514986395,0.1084505,93027.0,93026.0,0.15445161]
[1745514986798,0.1084505,93027.0,93026.0,0.15145161]
[1745514987011,0.1094505,93027.0,93026.0,0.15645161]
[1745514987502,0.1094505,93027.0,93026.0,0.17205048]
[1745514987893,0.002,93027.0,93026.0,0.29205048]
[1745514988089,0.002,93027.0,93026.0,0.29105029]
[1745514988299,0.001,93027.0,93026.0,0.45805029]
[1745514988499,0.002,93027.0,93026.0,0.52315029]
[1745514988706,0.56341493,93030.0,93029.0,0.1074482]
[1745514988895,0.56341493,93030.0,93029.0,0.28304688]
[1745514989090,0.56341493,93030.0,93029.0,0.45504688]
[1745514989494,0.0328,93039.0,93029.0,0.50881418]
[1745514989704,0.0328,93039.0,93038.0,0.1074378]
[1745514989894,0.16093469,93049.0,93038.0,0.28303648]
[1745514990099,0.032,93047.0,93046.0,0.1074285]
[1745514990301,0.032,93047.0,93046.0,0.26302718]
[1745514991200,0.032,93047.0,93046.0,0.43502718]
[1745514991504,0.1708274,93047.0,93046.0,0.32759868]
[1745514991709,0.1708274,93047.0,93046.0,0.332]
[1745514991911,0.1708274,93047.0,93046.0,0.4394285]
[1745514992106,0.1708274,93047.0,93046.0,0.16]
[1745514992415,0.1718274,93047.0,93046.0,0.16]
[1745514992603,0.1718274,93047.0,93046.0,0.2674285]
[1745514992802,0.1708274,93047.0,93046.0,0.2684285]
[1745514993008,0.0634,93047.0,93046.0,0.2684285]
[1745514993211,0.1708274,93047.0,93046.0,0.4404285]
[1745514993610,0.1708274,93047.0,93046.0,0.4424285]
[1745514994512,0.0634,93047.0,93046.0,0.4414285]
[1745514994718,0.0634,93047.0,93046.0,0.4424285]
[1745514995414,0.032,93047.0,93046.0,0.45859914]
[1745514995615,0.032,93047.0,93046.0,0.4434285]
[1745514996316,0.032,93047.0,93046.0,0.4757285]
[1745514996613,0.13490352,93063.0,93061.0,0.1074112]
[1745514996919,0.0626,93062.0,93061.0,0.2374112]
[1745514997718,0.0646,93062.0,93061.0,0.2374112]
[1745514997914,0.1720101,93062.0,93061.0,0.2374112]
[1745514998223,0.0666,93062.0,93061.0,0.2374112]
[1745514998527,0.0366,93062.0,93061.0,0.2542015]
[1745514998930,0.004,93062.0,93061.0,0.28450106]
[1745514999132,0.13490352,93068.0,93063.0,0.0537039]
[1745514999328,0.3925,93077.0,93064.0,0.07898986]
[1745514999522,0.3925,93077.0,93076.0,0.1073939]
[1745514999832,0.4998928,93077.0,93076.0,0.2473939]
[1745515000722,0.4998928,93077.0,93076.0,0.14]
[1745515001429,0.4998928,93077.0,93076.0,0.2473939]
[1745515002731,0.5409928,93077.0,93076.0,0.2483939]
[1745515003828,0.4336,93077.0,93076.0,0.2483939]
[1745515004041,0.5409928,93077.0,93076.0,0.2483939]
[1745515004533,0.008,93077.0,93076.0,0.2784939]
[1745515005229,0.008,93077.0,93076.0,0.4833939]
[1745515005740,0.4761928,93077.0,93076.0,0.3431]
[1745515006229,0.4761928,93077.0,93073.0,0.0536985]
[1745515006230,0.1611179,93062.0,93061.0,0.1074111]
[1745515006435,0.5219179,93062.0,93061.0,0.2674111]
[1745515006737,0.4145055,93062.0,93061.0,0.2975111]
[1745515007133,0.4791055,93062.0,93061.0,0.2975111]
[1745515007440,0.4801055,93062.0,93061.0,0.1901]
[1745515008240,0.4811055,93062.0,93061.0,0.2975112]
[1745515009133,0.4811055,93062.0,93061.0,0.1901]
[1745515009337,0.4811055,93062.0,93061.0,0.16]
[1745515010343,0.52549704,93062.0,93061.0,0.16]
[1745515010930,0.52549704,93062.0,93061.0,0.2674112]
[1745515011146,0.52549704,93062.0,93061.0,0.16]
[1745515012339,0.52549704,93062.0,93061.0,0.2674112]
[1745515013040,0.52549704,93062.0,93024.0,0.3608]
[1745515013041,0.0537245,93031.0,93024.0,0.3608]
[1745515013236,0.0537245,93031.0,93030.0,0.161165]
[1745515013427,0.1074493,93028.0,93027.0,0.0325]
[1745515013627,0.4682493,93028.0,93027.0,0.2999505]
[1745515014530,0.4682493,93028.0,93027.0,0.3308505]
[1745515014731,0.3608,93028.0,93027.0,0.3308505]
[1745515015037,0.1074486,93029.0,93028.0,0.1074493]
[1745515015343,0.001,93031.0,93030.0,0.107447]
[1745515015536,0.1084459,93031.0,93030.0,0.247447]
[1745515015729,0.0537217,93033.0,93032.0,0.1074435]
[1745515015730,0.1074445,93033.0,93032.0,0.1074435]
[1745515015932,0.3608,93048.0,93047.0,0.1074274]
[1745515016138,0.3608,93048.0,93047.0,0.2474274]
[1745515016548,0.4682262,93048.0,93047.0,0.3011406]
[1745515016738,0.1074262,93048.0,93047.0,0.3011406]
[1745515016939,0.0537108,93052.0,93051.0,0.1074228]
[1745515017141,0.1074166,93057.0,93056.0,0.1074158]
[1745515017333,0.1611195,93060.0,93059.0,0.1074124]
[1745515017539,0.1074147,93058.0,93057.0,0.0321]
[1745515017740,0.1074147,93058.0,93057.0,0.1921]
[1745515018241,0.1074147,93058.0,93057.0,0.2995158]
[1745515018643,0.0537124,93050.0,93047.0,0.163138]
[1745515018843,0.4682262,93048.0,93047.0,0.002]
[1745515019347,0.0537217,93034.0,93031.0,0.0537225]
[1745515019646,0.1074447,93032.0,93031.0,0.3011672]
[1745515020342,0.3608,93037.0,93034.0,0.0537207]
[1745515020645,0.4682392,93037.0,93036.0,0.1074401]
[1745515020943,0.4682392,93037.0,93036.0,0.2674401]
[1745515021539,0.4682392,93037.0,93036.0,0.16]
[1745515021837,0.4682392,93037.0,93036.0,0.2674401]
[1745515022238,0.4692392,93037.0,93036.0,0.2754401]
[1745515023033,0.4682392,93037.0,93036.0,0.2714401]
[1745515023243,0.4692392,93037.0,93036.0,0.2714401]
[1745515023459,0.46960486,93037.0,93036.0,0.2714401]
[1745515024135,0.46960486,93037.0,93036.0,0.3194401]
[1745515024541,0.46960486,93037.0,93036.0,0.3174401]
[1745515024747,0.46960486,93037.0,93036.0,0.3234401]
[1745515025436,0.46860486,93037.0,93036.0,0.3214401]
[1745515026442,0.46860486,93037.0,93036.0,0.212]
[1745515026644,0.46960486,93037.0,93036.0,0.216]
[1745515026848,0.46960486,93037.0,93036.0,0.3234401]
[1745515027233,0.36216566,93037.0,93036.0,0.3254401]
[1745515027438,0.46960456,93037.0,93036.0,0.3054401]
[1745515028246,0.46960456,93037.0,93036.0,0.4774401]
[1745515028535,0.36216566,93037.0,93036.0,0.4774401]
[1745515028743,0.46860456,93037.0,93036.0,0.4734401]
[1745515028943,0.36116566,93037.0,93036.0,0.4754401]
[1745515029148,0.46860456,93037.0,93036.0,0.4854401]
[1745515029350,0.46860456,93037.0,93036.0,0.4834401]
[1745515029550,0.46960456,93037.0,93036.0,0.4874401]
[1745515029958,0.46960456,93037.0,93036.0,0.38]
[1745515030150,0.46960456,93037.0,93036.0,0.154]
[1745515030349,0.46960456,93037.0,93036.0,0.158]
[1745515030647,0.46960456,93037.0,93036.0,0.2654401]
[1745515032143,0.46960456,93037.0,93036.0,0.158]
[1745515032647,0.46960456,93037.0,93036.0,0.2654401]
[1745515033147,0.46960456,93037.0,93036.0,0.3054401]
[1745515033551,0.36216566,93037.0,93036.0,0.3054401]
[1745515033753,0.36216566,93037.0,93036.0,0.3363401]
[1745515034048,0.36216566,93037.0,93036.0,0.5083401]
[1745515035157,0.00136566,93037.0,93036.0,0.5083401]
[1745515035353,6e-08,93045.0,93044.0,0.1074308]
[1745515035558,6e-08,93045.0,93044.0,0.63499816]
[1745515035752,6e-08,93045.0,93044.0,0.74247415]
[1745515035952,6e-08,93045.0,93044.0,0.90867415]
[1745515036155,6e-08,93045.0,93044.0,1.08067415]
[1745515036450,6e-08,93045.0,93044.0,0.98067415]
[1745515036651,6e-08,93045.0,93044.0,0.98267415]
[1745515037754,6e-08,93045.0,93044.0,0.98467415]
[1745515041153,6e-08,93045.0,93044.0,1.39957415]
[1745515042147,6e-08,93045.0,93044.0,1.31209816]
[1745515042355,0.46822976,93045.0,93044.0,0.6238]
[1745515042557,0.46822976,93045.0,93044.0,0.7309]
[1745515043059,0.46822976,93045.0,93044.0,0.316]
[1745515043253,0.70152976,93045.0,93044.0,0.2514308]
[1745515043448,0.70152976,93045.0,93044.0,0.144]
[1745515044258,0.52952976,93045.0,93044.0,0.144]
[1745515044955,0.06130006,93045.0,93044.0,0.2514308]
[1745515045163,6e-08,93045.0,93044.0,0.2821308]
[1745515045465,6e-08,93045.0,93044.0,0.3470308]
[1745515046053,0.10742976,93045.0,93044.0,0.3470308]
[1745515046355,0.10742976,93045.0,93044.0,0.5190308]
[1745515047866,6e-08,93045.0,93044.0,0.5190308]
[1745515048363,0.10742976,93045.0,93044.0,0.5190308]
[1745515048755,6e-08,93045.0,93044.0,0.5190308]
[1745515049358,6e-08,93045.0,93044.0,0.63650679]
[1745515049558,6e-08,93045.0,93044.0,0.99730679]
[1745515051466,6e-08,93045.0,93044.0,1.01328897]
[1745515052359,6e-08,93045.0,93044.0,1.01334762]
[1745515052759,6e-08,93045.0,93044.0,1.42824762]
[1745515053161,6e-08,93045.0,93044.0,1.41220679]
[1745515053966,6e-08,93045.0,93044.0,1.4282206]
[1745515054565,6e-08,93045.0,93044.0,1.41220679]
[1745515054952,6e-08,93045.0,93044.0,1.42847374]
[1745515055158,0.00099752,93060.0,93059.0,0.1074135]
[1745515055480,0.1083667,93068.0,93067.0,0.1074043]
[1745515055481,0.0009626,93068.0,93067.0,0.1074043]
[1745515055770,0.0009626,93068.0,93067.0,0.6082043]
[1745515056069,0.0009626,93068.0,93067.0,0.62460533]
[1745515056265,0.0009626,93068.0,93067.0,0.79660533]
[1745515056459,1e-07,93068.0,93067.0,0.87080533]
[1745515056661,1e-07,93068.0,93067.0,0.88080533]
[1745515056860,7e-08,93072.0,93071.0,0.1073997]
[1745515057156,7e-08,93072.0,93071.0,0.44580073]
[1745515057361,7e-08,93074.0,93073.0,0.1073974]
[1745515057664,7e-08,93074.0,93073.0,0.27408942]
[1745515057871,7e-08,93074.0,93073.0,0.38152942]
[1745515058059,7e-08,93074.0,93073.0,0.41852942]
[1745515058262,7e-08,93074.0,93073.0,1.00542942]
[1745515059166,7e-08,93074.0,93073.0,1.01362162]
[1745515059869,0.00200007,93074.0,93073.0,1.01362162]
[1745515060066,7e-08,93074.0,93073.0,1.01362162]
[1745515060276,0.13488665,93083.0,93082.0,0.107387]
[1745515060464,0.13488665,93083.0,93082.0,0.257387]
[1745515060664,0.13488665,93083.0,93082.0,0.27383242]
[1745515060865,0.13488665,93083.0,93082.0,0.27383247]
[1745515061067,0.13488665,93083.0,93082.0,0.429387]
[1745515062371,0.00162636,93084.0,93083.0,0.1073858]
[1745515062666,0.00162636,93084.0,93083.0,0.2967858]
[1745515063074,0.03822636,93084.0,93083.0,0.2967858]
[1745515063273,0.03822636,93084.0,93083.0,0.4687858]
[1745515063767,0.03922636,93084.0,93083.0,0.4687858]
[1745515066160,0.03922636,93084.0,93083.0,0.4293858]
[1745515067673,0.14661106,93084.0,93083.0,0.4293858]
[1745515068264,0.14661106,93084.0,93083.0,0.2573858]
[1745515068669,0.14661106,93084.0,93082.0,0.4149]
[1745515068867,0.1469858,93083.0,93082.0,0.5549]
[1745515069173,0.1469858,93083.0,93082.0,0.4149]
[1745515069366,0.1469858,93083.0,93067.0,0.3608]
[1745515069367,0.1074043,93068.0,93065.0,0.161107]
[1745515069564,0.1074066,93066.0,93065.0,0.321107]
[1745515069974,0.1849054,93066.0,93065.0,0.4285124]
[1745515070271,0.0775,93066.0,93065.0,0.4285124]
[1745515070472,0.3608,93070.0,93067.0,0.0537016]
[1745515070674,0.0775,93083.0,93082.0,0.107387]
[1745515070976,0.0396,93083.0,93082.0,0.247387]
[1745515072676,0.1469858,93083.0,93082.0,0.247387]
[1745515073174,0.1469858,93083.0,93076.0,0.0536967]
[1745515073175,0.1073939,93076.0,93075.0,0.107394]
[1745515073375,0.4681939,93076.0,93075.0,0.267394]
[1745515073772,0.1073939,93076.0,93075.0,0.267394]
[1745515074281,0.4681939,93076.0,93075.0,0.267394]
[1745515074577,0.4681939,93076.0,93075.0,0.269394]
[1745515075278,0.5057939,93076.0,93075.0,0.271394]
[1745515076676,0.5057939,93076.0,93075.0,0.2713951]
[1745515081372,0.5057939,93076.0,93075.0,0.164]
[1745515081574,0.5057939,93076.0,93075.0,0.134]
[1745515082173,0.6777939,93076.0,93075.0,0.134]
[1745515082574,0.6777939,93076.0,93075.0,0.2413951]
[1745515082975,0.6777939,93076.0,93075.0,0.134]
[1745515083277,0.7193939,93076.0,93075.0,0.134]
[1745515083489,0.7193939,93076.0,93075.0,0.2413951]
[1745515084178,0.5473939,93076.0,93075.0,0.2413951]
[1745515085080,0.5473939,93076.0,93075.0,0.2613951]
[1745515085875,0.5473939,93076.0,93075.0,0.004]
[1745515086184,0.5473939,93076.0,93075.0,0.054]
[1745515086382,0.0537038,93065.0,93061.0,0.4149]
[1745515086579,0.3608,93062.0,93061.0,0.14]
[1745515086780,0.5756661,93062.0,93061.0,0.14]
[1745515087387,0.6569661,93062.0,93061.0,0.14]
[1745515087579,0.6569661,93062.0,93061.0,0.144]
[1745515087781,0.5515101,93062.0,93061.0,0.2514112]
[1745515088189,0.5495101,93062.0,93061.0,0.2514112]
[1745515089291,0.5495101,93062.0,93061.0,0.2474112]
[1745515089591,0.5495101,93062.0,93061.0,0.2484112]
[1745515089791,0.5495101,93062.0,93061.0,0.142]
[1745515090294,0.5495101,93062.0,93061.0,0.2494112]
[1745515090883,0.5525101,93062.0,93061.0,0.2484112]
[1745515092091,0.5525101,93062.0,93061.0,0.141]
[1745515092287,0.5495101,93062.0,93061.0,0.2484112]
[1745515092685,0.5495101,93062.0,93061.0,0.2494112]
[1745515093087,0.5495101,93062.0,93061.0,0.2484112]
[1745515093589,0.5495101,93062.0,93061.0,0.2474112]
[1745515093590,0.5505101,93062.0,93061.0,0.2474112]
[1745515093891,0.5505101,93062.0,93061.0,0.141]
[1745515094284,0.5505101,93062.0,93000.0,0.16038893]
[1745515094285,0.912436,93062.0,93020.0,0.7757]
[1745515094480,0.4682505,93027.0,93026.0,0.20372401]
[1745515095684,0.0537208,93035.0,93026.0,0.24682401]
[1745515095891,0.3608,93038.0,93037.0,0.1074389]
[1745515096093,0.4682378,93038.0,93037.0,0.2574389]
[1745515096296,0.4682378,93038.0,93037.0,0.4294389]
[1745515096891,0.4692378,93038.0,93037.0,0.4334389]
[1745515097291,0.4692378,93038.0,93037.0,0.2644389]
[1745515097998,0.4692378,93038.0,93031.0,0.0537228]
[1745515097999,0.1074505,93027.0,93020.0,0.4145293]
[1745515098187,0.4682505,93027.0,93026.0,0.13000001]
[1745515098389,0.3608,93027.0,93026.0,0.23745161]
[1745515098590,0.4682505,93027.0,93026.0,0.23745161]
[1745515098791,0.1074505,93027.0,93026.0,0.23745161]
[1745515099199,0.1084505,93027.0,93026.0,0.13700001]
[1745515099394,0.1515505,93027.0,93026.0,0.29245161]
[1745515099587,0.1515505,93027.0,93026.0,0.18500001]
[1745515099790,0.1515505,93027.0,93026.0,0.29245161]
[1745515100196,0.1094505,93027.0,93026.0,0.29245161]
[1745515100606,0.1515505,93027.0,93026.0,0.18500001]
[1745515100900,0.1515505,93027.0,93026.0,0.14300001]
[1745515101301,0.107462,93017.0,93016.0,0.0406]
[1745515101508,0.468262,93017.0,93016.0,0.3080632]
[1745515101801,0.002,93027.0,93026.0,0.1074516]
[1745515101996,0.002,93027.0,93026.0,0.2574516]
[1745515102196,0.002,93027.0,93026.0,0.4194516]
[1745515102197,0.001,93027.0,93026.0,0.4194516]
[1745515102396,0.1074431,93034.0,93033.0,0.1611625]
[1745515102599,0.1074431,93034.0,93033.0,0.2365213]
[1745515102804,0.1074431,93034.0,93033.0,0.2771213]
[1745515103105,0.1074431,93034.0,93033.0,0.4491213]
[1745515103803,0.4682407,93036.0,93033.0,0.4491213]
[1745515104004,0.4682406,93036.0,93035.0,0.1074412]
[1745515104202,0.4682406,93036.0,93035.0,0.2474412]
[1745515104999,0.4682406,93036.0,93035.0,0.14]
[1745515105000,0.5095406,93036.0,93035.0,0.14]
[1745515105314,0.6825406,93036.0,93035.0,0.14]
[1745515105806,0.6835406,93036.0,93035.0,0.14]
[1745515106198,0.5115406,93036.0,93035.0,0.14]
[1745515106510,0.1074597,93020.0,93019.0,0.0537286]
[1745515106709,0.1074597,93020.0,93019.0,0.2761286]
[1745515107804,0.1084597,93020.0,93019.0,0.2761286]
[1745515108305,0.1084597,93020.0,93019.0,0.2354286]
[1745515108609,0.1094597,93020.0,93019.0,0.2384286]
[1745515109507,0.1094597,93020.0,93019.0,0.1847]
[1745515110304,0.1094597,93020.0,93019.0,0.2047]
[1745515110498,0.1094597,93020.0,93019.0,0.163]
[1745515110904,0.1074632,93016.0,93010.0,0.0421]
[1745515111207,0.4682632,93016.0,93015.0,0.14537545]
[1745515111899,0.5757712,93016.0,93015.0,0.14537545]
[1745515112099,0.5757712,93016.0,93003.0,0.0859]
[1745515112100,0.107477,93004.0,93003.0,0.0421]
[1745515112299,0.468277,93004.0,93003.0,0.2021]
[1745515112505,0.468324,93004.0,92996.0,0.00107531]
[1745515112712,0.3608,92998.0,92996.0,0.06]
[1745515112901,0.0946427,92997.0,92996.0,0.06]
[1745515113103,0.1074921,92991.0,92990.0,0.0421]
[1745515113301,0.4682921,92991.0,92990.0,0.1921]
[1745515113504,0.4682921,92991.0,92990.0,0.15]
[1745515114008,0.1075036,92981.0,92980.0,0.0414]
[1745515114201,0.1075036,92981.0,92966.0,0.04547566]
[1745515114202,0.1075187,92968.0,92966.0,0.04547566]
[1745515114506,0.1075187,92968.0,92967.0,0.20897822]
[1745515114808,0.1075187,92968.0,92967.0,0.19897822]
[1745515115001,0.1934187,92968.0,92967.0,0.19897822]
[1745515115401,0.1964187,92968.0,92967.0,0.15537822]
[1745515116006,0.1944187,92968.0,92967.0,0.15537822]
[1745515117303,0.1954187,92968.0,92967.0,0.16537822]
[1745515117706,0.1944187,92968.0,92967.0,0.16537822]
[1745515118008,0.1954187,92968.0,92967.0,0.16537822]
[1745515118797,0.1944187,92968.0,92967.0,0.16537822]
[1745515118997,0.1954187,92968.0,92967.0,0.16537822]
[1745515120097,0.3674187,92968.0,92967.0,0.16537822]
[1745515120410,0.2599,92968.0,92967.0,0.27289802]
[1745515120615,0.174,92968.0,92967.0,0.40519802]
[1745515120913,0.2815187,92968.0,92967.0,0.33709802]
[1745515121103,0.1095187,92968.0,92967.0,0.50909802]
[1745515121302,0.1095187,92968.0,92967.0,0.40157822]
[1745515121509,0.1526187,92968.0,92967.0,0.50909802]
[1745515121707,0.1095187,92968.0,92967.0,0.50909802]
[1745515123406,0.1507187,92968.0,92967.0,0.50909802]
[1745515124513,0.1507187,92968.0,92967.0,0.40157822]
[1745515125110,0.1939187,92968.0,92967.0,0.14537822]
[1745515125309,0.0537633,92962.0,92957.0,0.0828]
[1745515125509,0.1075302,92958.0,92957.0,0.33033]
[1745515126114,0.1075302,92958.0,92957.0,0.50233]
[1745515126710,0.1075302,92958.0,92957.0,0.50333]
[1745515127006,0.002,92962.0,92961.0,0.1075268]
[1745515127212,0.3608,92982.0,92981.0,0.1075036]
[1745515127511,0.3608,92982.0,92981.0,0.2475036]
[1745515127512,0.4683025,92982.0,92981.0,0.2475036]
[1745515127711,0.57540102,92982.0,92981.0,0.2475036]
[1745515127917,0.57540102,92982.0,92981.0,0.3295036]
[1745515128116,0.57540102,92982.0,92981.0,0.364]
[1745515128711,0.61940102,92982.0,92981.0,0.364]
[1745515129112,0.61940102,92982.0,92981.0,0.192]
[1745515129615,0.62140102,92982.0,92981.0,0.193]
[1745515131418,0.98220102,92982.0,92981.0,0.193]
[1745515132816,0.8751025,92982.0,92981.0,0.193]
[1745515133124,0.8751025,92982.0,92981.0,0.1518]
[1745515133422,0.1075164,92970.0,92969.0,0.0415]
[1745515133613,0.1075164,92970.0,92969.0,0.1815]
[1745515133614,0.4683164,92970.0,92969.0,0.1815]
[1745515134223,0.5115164,92970.0,92969.0,0.3535]
[1745515135325,0.5125164,92970.0,92969.0,0.3545]
[1745515135625,0.5115164,92970.0,92969.0,0.3535]
[1745515135923,0.5125164,92970.0,92969.0,0.3545]
[1745515136123,0.5135164,92970.0,92969.0,0.3545]
[1745515141125,0.5135164,92970.0,92969.0,0.1825]
[1745515142028,0.5135164,92970.0,92969.0,0.1032298]
[1745515142325,0.1075328,92961.0,92955.0,0.0537668]
[1745515142527,0.4683314,92957.0,92956.0,0.2392325]
[1745515142713,0.406,92970.0,92956.0,0.2392325]
[1745515142714,0.1075187,92968.0,92967.0,0.0537594]
[1745515142916,0.1075187,92968.0,92967.0,0.2998594]
[1745515143116,0.1075187,92968.0,92967.0,0.2461]
[1745515143530,0.1075187,92968.0,92967.0,0.3336198]
[1745515143724,0.3618,92970.0,92969.0,0.1075175]
[1745515143932,0.001,92970.0,92969.0,0.2675175]
[1745515144124,0.001,92970.0,92969.0,0.4395175]
[1745515144324,0.1075092,92977.0,92971.0,0.0537575]
[1745515144628,0.49568665,92978.0,92977.0,0.1075083]
[1745515144831,0.49568665,92978.0,92977.0,0.2475083]
[1745515145124,0.49568665,92978.0,92977.0,0.7770603]
[1745515145315,0.13488665,92978.0,92977.0,0.7770603]
[1745515145521,0.1075,92985.0,92984.0,0.107499]
[1745515145724,0.16193878,92986.0,92985.0,0.107499]
[1745515145931,0.16193878,92986.0,92985.0,0.313099]
[1745515146121,0.16193878,92986.0,92985.0,0.359599]
[1745515146322,0.16193878,92986.0,92985.0,0.531599]
[1745515146524,0.16193878,92986.0,92985.0,0.541599]
[1745515146826,0.16193878,92986.0,92985.0,0.649143]
[1745515147018,0.16193878,92986.0,92985.0,0.541599]
[1745515147222,0.16393878,92986.0,92985.0,0.541599]
[1745515147630,0.0011,92997.0,92993.0,0.0537448]
[1745515147820,0.0011,92997.0,92996.0,0.1074863]
[1745515148024,0.0011,92997.0,92996.0,0.2674863]
[1745515148225,0.0011,92997.0,92996.0,0.5470183]
[1745515148527,0.3608,93003.0,93002.0,0.1074794]
[1745515148723,0.3608,93003.0,93002.0,0.2774794]
[1745515148924,0.1612028,93013.0,93012.0,0.1074678]
[1745515149124,0.1612028,93013.0,93012.0,0.2674678]
[1745515149432,0.3608,93015.0,93014.0,0.1074655]
[1745515149736,0.3608,93015.0,93014.0,0.2474655]
[1745515149919,0.4682643,93015.0,93014.0,0.2474655]
[1745515150125,0.1074643,93015.0,93014.0,0.4194655]
[1745515151738,0.1084643,93015.0,93014.0,0.4224655]
[1745515151938,0.1094643,93015.0,93014.0,0.4224655]
[1745515152429,0.1114643,93015.0,93014.0,0.4224655]
[1745515153436,0.1104643,93015.0,93014.0,0.4194655]
[1745515153734,0.1114643,93015.0,93014.0,0.4204655]
[1745515153936,0.1094643,93015.0,93014.0,0.4204655]
[1745515154330,0.1094643,93015.0,93014.0,0.4214655]
[1745515154832,0.002,93015.0,93014.0,0.5262655]
[1745515155026,0.002,93015.0,93014.0,0.8850655]
[1745515155226,0.003,93015.0,93014.0,0.8860655]
[1745515157036,0.002,93015.0,93014.0,0.8850655]
[1745515157236,0.003,93015.0,93014.0,0.8860655]
[1745515157437,0.002,93015.0,93014.0,0.8860655]
[1745515158037,0.1094643,93015.0,93014.0,0.8860655]
[1745515158237,0.002,93015.0,93014.0,0.8860655]
[1745515158539,0.1094643,93015.0,93014.0,0.4178]
[1745515158743,0.1562643,93015.0,93014.0,0.5252655]
[1745515159047,0.1562643,93015.0,93014.0,0.4204655]
[1745515160945,0.2039643,93015.0,93014.0,0.312]
[1745515161145,0.2029643,93015.0,93014.0,0.14]
[1745515161341,0.1074747,93006.0,93005.0,0.10044]
[1745515161547,0.4682747,93006.0,93005.0,0.15]
[1745515161855,0.1074817,93000.0,92999.0,0.11539177]
[1745515162049,0.1074817,93000.0,92999.0,0.15790947]
[1745515162247,0.1074817,93000.0,92999.0,0.15]
[1745515162753,0.1512817,93000.0,92999.0,0.2574828]
[1745515162949,0.3608,93004.0,93003.0,0.1074782]
[1745515163147,0.468277,93004.0,93003.0,0.4194782]
[1745515163650,0.107477,93004.0,93003.0,0.4194782]
[1745515163855,0.0438,93005.0,93004.0,0.107477]
[1745515164153,0.3608,93006.0,93005.0,0.1074759]
[1745515164354,0.3608,93006.0,93005.0,0.2947759]
[1745515164551,0.4682747,93006.0,93005.0,0.2947759]
[1745515165144,0.4682747,93006.0,93005.0,0.4667759]
[1745515165647,0.4702747,93006.0,93005.0,0.4667759]
[1745515165849,0.002,93006.0,93005.0,0.57429589]
[1745515166055,0.1074613,93018.0,93015.0,0.1074643]
[1745515166251,0.08065222,93017.0,93015.0,0.2474643]
[1745515166457,0.08065222,93017.0,93015.0,0.3995723]